bitfinex/quotes_SOLUSD_20251115
["timestamp","ask_amount","ask_price","bid_price","bid_amount"]
[1763196267757,0.14216157,141.72,141.71,0.1]
[1763196267936,0.14216157,141.72,141.69,0.1]
[1763196267937,38.31343904,141.72,141.69,0.1]
[1763196268137,2.69098568,141.7,141.69,0.1]
[1763196268461,2.69098568,141.7,141.63,7.16061123]
[1763196268462,22.6512,141.66,141.63,0.1]
[1763196268760,28.17533293,141.66,141.63,0.79]
[1763196269829,28.37533293,141.66,141.63,0.1]
[1763196270548,31.205288,141.66,141.63,0.1]
[1763196271337,31.005288,141.66,141.63,0.79]
[1763196271751,31.005288,141.66,141.63,0.1]
[1763196272752,28.31430232,141.66,141.64,0.69]
[1763196272958,25.48434725,141.66,141.65,0.79]
[1763196274249,28.37533293,141.66,141.65,0.1]
[1763196274441,38.16416062,141.66,141.65,0.1]
[1763196274643,9.93098926,141.65,141.63,0.1]
[1763196274937,3.03314725,141.64,141.63,0.1]
[1763196275769,32.58218926,141.61,141.6,0.1]
[1763196275931,28.17533293,141.61,141.6,0.1]
[1763196276442,31.00628943,141.61,141.6,0.1]
[1763196276647,31.20628943,141.61,141.6,0.1]
[1763196276946,0.14216157,141.58,141.57,0.1]
[1763196277268,1.99999999,141.52,141.39,25.4602897]
[1763196277562,2.69098568,141.48,141.44,2.69098568]
[1763196277761,1.99999999,141.49,141.45,9.78882769]
[1763196277940,2.69098568,141.48,141.45,9.78882769]
[1763196278142,2.69098568,141.48,141.46,7.06913615]
[1763196278464,2.69098568,141.48,141.45,7.0694851]
[1763196278964,2.14216156,141.48,141.38,7.07313622]
[1763196279142,2.69098568,141.46,141.41,25.34218568]
[1763196279339,2.69098568,141.46,141.4,17.67464267]
[1763196279340,2.69098568,141.44,141.4,17.67464267]
[1763196279544,2.69098568,141.44,141.41,0.69]
[1763196279958,1.99999999,141.46,141.41,3.38098568]
[1763196280260,1.99999999,141.45,141.42,7.07113562]
[1763196280468,4.69098567,141.45,141.42,7.76113562]
[1763196280640,4.69098567,141.45,141.43,0.69]
[1763196280837,2.69098568,141.45,141.43,0.69]
[1763196281040,13.07098567,141.46,141.43,0.69]
[1763196281444,4.69098567,141.47,141.43,0.69]
[1763196281752,13.07098567,141.47,141.43,3.38098568]
[1763196282047,13.07098567,141.47,141.44,7.07013574]
[1763196282256,13.07098567,141.47,141.44,7.76013574]
[1763196282454,13.07098567,141.47,141.45,0.69]
[1763196282648,4.69098567,141.46,141.44,0.69]
[1763196282853,3.73134888,141.45,141.44,0.69]
[1763196283239,1.73134889,141.45,141.44,0.69]
[1763196283455,1.99999999,141.45,141.44,0.69]
[1763196283980,1.99999999,141.42,141.38,0.68]
[1763196284140,3.73134888,141.39,141.38,0.68]
[1763196284487,3.73134888,141.39,141.36,8.38]
[1763196284488,1.99999999,141.38,141.36,0.68]
[1763196284782,1.99999999,141.37,141.36,0.68]
[1763196284966,1.99999999,141.38,141.36,0.68]
[1763196285136,0.68,141.4,141.36,0.68]
[1763196285137,3.73134888,141.37,141.36,0.68]
[1763196285344,1.99999999,141.37,141.36,0.68]
[1763196285539,3.73134888,141.37,141.36,0.68]
[1763196285838,1.99999999,141.38,141.31,5.03514592]
[1763196286077,1.99999999,141.38,141.3,24.8245688]
[1763196286078,1.73134889,141.38,141.32,24.76648739]
[1763196286253,3.73134888,141.37,141.33,14.35514592]
[1763196286455,3.73134888,141.37,141.3,8.4345773]
[1763196286661,3.73134888,141.33,141.3,0.0545773]
[1763196286976,22.79336157,141.36,141.32,1.73134889]
[1763196286977,8.38,141.36,141.32,1.73134889]
[1763196287143,1.99999999,141.4,141.35,1.73134889]
[1763196287340,8.38,141.41,141.38,1.73134889]
[1763196287659,1.99999999,141.4,141.37,1.73134889]
[1763196287843,1.99999999,141.41,141.37,1.73134889]
[1763196288044,1.99999999,141.41,141.39,7.07263597]
[1763196288243,1.99999999,141.4,141.39,7.07263597]
[1763196288765,1.99999999,141.41,141.39,7.07263597]
[1763196288968,1.99999999,141.41,141.4,4.20953832]
[1763196289146,1.99999999,141.42,141.39,28.96376421]
[1763196289967,1.99999999,141.42,141.39,24.75422589]
[1763196290144,1.99999999,141.4,141.37,7.07354808]
[1763196290347,1.99999999,141.4,141.37,11.2830864]
[1763196290652,1.99999999,141.41,141.37,11.2830864]
[1763196290953,1.99999999,141.4,141.37,11.2830864]
[1763196291874,1.99999999,141.41,141.38,4.20953832]
[1763196292247,1.99999999,141.41,141.38,11.28224023]
[1763196292467,1.99999999,141.43,141.39,4.20953832]
[1763196292671,1.99999999,141.42,141.39,4.20953832]
[1763196293248,1.99999999,141.42,141.4,4.20953832]
[1763196293449,1.99999999,141.42,141.39,4.20953832]
[1763196294262,1.99999999,141.42,141.4,7.07213578]
[1763196294665,6.20953831,141.44,141.4,7.07213578]
[1763196294979,1.99999999,141.44,141.4,7.07213578]
[1763196295269,6.20953831,141.44,141.4,7.07213578]
[1763196295573,4.20953832,141.44,141.4,28.96201356]
[1763196295760,6.20953831,141.44,141.4,24.75247524]
[1763196295959,1.99999999,141.43,141.4,24.75247524]
[1763196296668,4.88953832,141.44,141.4,24.75247524]
[1763196296975,4.20953832,141.44,141.4,24.75247524]
[1763196297151,6.20953831,141.44,141.4,7.07213578]
[1763196297960,1.99999999,141.44,141.4,11.2816741]
[1763196298268,1.99999999,141.44,141.4,28.96201356]
[1763196298450,1.99999999,141.44,141.4,31.79557712]
[1763196298651,4.20953832,141.45,141.41,13.99836601]
[1763196298950,2.67999999,141.46,141.41,13.99836601]
[1763196299152,4.88953832,141.45,141.41,13.99836601]
[1763196299677,4.20953832,141.42,141.37,9.78882769]
[1763196299985,1.99999999,141.43,141.4,4.20953832]
[1763196300277,1.99999999,141.45,141.41,4.20953832]
[1763196300574,6.20953831,141.46,141.42,7.07113562]
[1763196300879,1.99999999,141.46,141.45,4.20953832]
[1763196301059,104.3,141.48,141.42,24.74897468]
[1763196301253,104.3,141.48,141.46,4.20953832]
[1763196301453,1.99999999,141.49,141.46,9.78882769]
[1763196301680,1.99999999,141.49,141.47,4.20953832]
[1763196301882,6.88953831,141.52,141.46,9.78882769]
[1763196302194,1.99999999,141.5,141.47,4.20953832]
[1763196302360,1.99999999,141.5,141.46,9.78882769]
[1763196302553,1.99999999,141.5,141.47,7.06863646]
[1763196302988,4.20953832,141.51,141.45,43.8954021]
[1763196303197,4.20953832,141.46,141.38,0.68]
[1763196303372,6.20953831,141.42,141.38,7.75304385]
[1763196303572,6.20953831,141.42,141.39,4.88953832]
[1763196303772,1.99999999,141.42,141.39,4.88953832]
[1763196304188,4.20953832,141.41,141.39,4.20953832]
[1763196304492,6.20953831,141.41,141.37,11.96303056]
[1763196304696,4.20953832,141.41,141.38,22.6512]
[1763196304899,1.99999999,141.41,141.38,26.86073832]
[1763196305183,1.99999999,141.41,141.38,4.20953832]
[1763196305389,1.99999999,141.41,141.3,35.58200662]
[1763196305390,1.99999999,141.39,141.3,35.58200662]
[1763196305683,1.99999999,141.36,141.34,4.20953832]
[1763196306265,0.68,141.35,141.31,7.07664001]
[1763196306466,2.67999999,141.35,141.32,4.20953832]
[1763196306688,1.99999999,141.33,141.32,4.20953832]
[1763196307185,1.99999999,141.33,141.3,0.0545773]
[1763196307367,1.99999999,141.31,141.3,0.0545773]
[1763196307891,15.28953831,141.31,141.3,0.0545773]
[1763196308059,14.60953831,141.31,141.3,0.0545773]
[1763196308262,1.99999999,141.31,141.3,0.0545773]
[1763196308777,2.67999999,141.31,141.3,0.0545773]
[1763196309757,7.03169988,141.31,141.3,0.0545773]
[1763196309957,2.82216156,141.31,141.3,0.0545773]
[1763196310161,7.03169988,141.31,141.3,0.0545773]
[1763196311785,7.78007269,141.35,141.3,4.96411562]
[1763196311786,1.99999999,141.32,141.3,4.96411562]
[1763196312093,1.99999999,141.31,141.3,0.0545773]
[1763196312613,2.66999999,141.31,141.3,0.0545773]
[1763196313019,7.02169988,141.31,141.3,0.0545773]
[1763196313790,7.02169988,141.31,141.09,21.28]
[1763196313791,1.99999999,141.22,141.2,7.08214591]
[1763196313996,1.99999999,141.22,141.18,0.68]
[1763196313997,6.20953831,141.22,141.18,21.28338831]
[1763196314214,1.99999999,141.19,141.18,21.28338831]
[1763196314523,27.54073832,141.22,141.03,104.91745444]
[1763196314524,24.65119999,141.16,141.08,17.71960286]
[1763196314696,1.99999999,141.13,141.11,4.20953832]
[1763196314890,0.14216157,141.17,141.12,4.20953832]
[1763196314891,1.99999999,141.15,141.12,4.20953832]
[1763196315231,1.99999999,141.14,141.12,4.20953832]
[1763196315391,1.99999999,141.16,141.1,1430.80502726]
[1763196315592,1.99999999,141.17,141.15,4.20953832]
[1763196315809,1.99999999,141.16,141.15,4.20953832]
[1763196315986,1.99999999,141.14,141.11,4.20953832]
[1763196316188,1.99999999,141.15,141.1,1400.20953832]
[1763196316403,1.99999999,141.14,141.13,4.20953832]
[1763196316697,1.99999999,141.14,141.12,4.20953832]
[1763196316886,1.99999999,141.17,141.13,13.99836601]
[1763196317090,1.99999999,141.17,141.15,4.20953832]
[1763196317290,1.99999999,141.17,141.14,4.20953832]
[1763196317494,1.99999999,141.18,141.15,4.20953832]
[1763196317699,1.99999999,141.17,141.16,13.99836601]
[1763196317912,1.99999999,141.18,141.16,13.99836601]
[1763196318111,1.99999999,141.15,141.12,29.73696293]
[1763196318324,1.99999999,141.15,141.12,7.08576293]
[1763196318489,1.99999999,141.15,141.11,7.08664388]
[1763196318689,1.99999999,141.13,141.11,7.08664388]
[1763196318889,1.99999999,141.13,141.11,4.20953832]
[1763196319089,1.99999999,141.13,141.1,1407.29659044]
[1763196319328,1.99999999,141.12,141.1,1400.20953832]
[1763196319913,1.99999999,141.13,141.1,1411.50624885]
[1763196320117,1.99999999,141.11,141.1,1400.20953832]
[1763196320687,1.99999999,141.12,141.1,1400.20953832]
[1763196320886,1.99999999,141.11,141.1,1400.20953832]
[1763196321091,1.99999999,141.13,141.1,1407.29671053]
[1763196321292,1.99999999,141.11,141.1,1400.20953832]
[1763196321506,1.99999999,141.11,141.1,1432.49667442]
[1763196321709,1.99999999,141.13,141.1,1432.97667442]
[1763196321907,1.99999999,141.13,141.1,1437.18621274]
[1763196322106,26.86073832,141.19,141.12,4.20953832]
[1763196322107,1.99999999,141.14,141.12,4.20953832]
[1763196322305,1.99999999,141.14,141.13,13.99836601]
[1763196322703,1.99999999,141.17,141.13,13.99836601]
[1763196322906,1.99999999,141.15,141.14,13.99836601]
[1763196323698,1.99999999,141.15,141.14,4.20953832]
[1763196323900,1.99999999,141.14,141.13,4.20953832]
[1763196324102,1.99999999,141.17,141.13,4.20953832]
[1763196324416,1.99999999,141.19,141.16,4.20953832]
[1763196324596,1.99999999,141.17,141.16,4.20953832]
[1763196324794,1.99999999,141.19,141.16,4.20953832]
[1763196325001,1.99999999,141.2,141.18,4.20953832]
[1763196325203,0.14216157,141.22,141.19,4.20953832]
[1763196325204,1.99999999,141.22,141.19,4.20953832]
[1763196325401,1.99999999,141.23,141.2,4.20953832]
[1763196325607,1.99999999,141.24,141.2,4.20953832]
[1763196326218,1.99999999,141.22,141.21,4.20953832]
[1763196326523,1.99999999,141.2,141.17,9.78882769]
[1763196326711,1.99999999,141.2,141.19,4.20953832]
[1763196326907,2.67999999,141.19,141.17,4.20953832]
[1763196327131,1.99999999,141.18,141.15,9.78882769]
[1763196327429,1.99999999,141.16,141.15,4.20953832]
[1763196327622,1.99999999,141.16,141.12,11.29560471]
[1763196327623,1.99999999,141.15,141.14,4.20953832]
[1763196328007,1.99999999,141.15,141.12,9.78882769]
[1763196328328,1.99999999,141.15,141.14,4.20953832]
[1763196328533,1.99999999,141.14,141.12,9.78882769]
[1763196328736,1.99999999,141.14,141.12,4.20953832]
[1763196328940,1.99999999,141.13,141.12,4.20953832]
[1763196329121,1.99999999,141.12,141.11,4.20953832]
[1763196330733,1.99999999,141.15,141.12,9.78882769]
[1763196330933,1.99999999,141.15,141.14,4.20953832]
[1763196331236,1.99999999,141.15,141.14,11.29470198]
[1763196331733,1.99999999,141.17,141.14,11.29470198]
[1763196331940,1.99999999,141.16,141.15,4.20953832]
[1763196332529,2.67999999,141.16,141.13,11.29515736]
[1763196332732,1.99999999,141.14,141.13,21.08398505]
[1763196332923,1.99999999,141.14,141.13,13.99836601]
[1763196333234,1.99999999,141.14,141.13,4.20953832]
[1763196334836,1.99999999,141.15,141.13,4.20953832]
[1763196335038,1.99999999,141.14,141.13,4.20953832]
[1763196335243,1.99999999,141.13,141.12,4.20953832]
[1763196335938,1.99999999,141.13,141.11,11.29614255]
[1763196336156,2.67999999,141.12,141.1,1429.61907664]
[1763196336444,1.99999999,141.11,141.1,1429.61907664]
[1763196336940,1.99999999,141.11,141.1,1425.40953832]
[1763196337151,1.99999999,141.11,141.1,1429.61907664]
[1763196337542,1.99999999,141.11,141.1,1425.40953832]
[1763196338045,1.99999999,141.11,141.1,1446.49507654]
[1763196338218,2.67999999,141.11,141.1,1425.40953832]
[1763196342147,2.82216156,141.11,141.1,1425.40953832]
[1763196342330,7.03169988,141.11,141.1,1425.40953832]
[1763196342531,1.99999999,141.11,141.1,1425.40953832]
[1763196342835,1.99999999,141.12,141.1,1436.70624885]
[1763196343021,1.99999999,141.13,141.11,4.20953832]
[1763196343223,55.70306374,141.24,141.11,4.20953832]
[1763196343224,1.99999999,141.14,141.13,7.08566569]
[1763196343469,1.99999999,141.13,141.12,7.08602637]
[1763196343750,1.99999999,141.15,141.12,7.08602637]
[1763196343952,1.99999999,141.15,141.12,25.28144587]
[1763196344160,1.99999999,141.16,141.13,9.78882769]
[1763196344536,1.99999999,141.18,141.15,4.20953832]
[1763196344742,1.99999999,141.18,141.17,4.20953832]
[1763196344936,1.99999999,141.19,141.17,6.7221637]
[1763196345335,1.99999999,141.18,141.17,13.80578756]
[1763196345529,50.0,141.25,141.18,9.78882769]
[1763196345530,1.99999999,141.21,141.18,9.78882769]
[1763196345836,1.99999999,141.21,141.12,29.3733637]
[1763196345837,1.99999999,141.19,141.13,16.87449338]
[1763196346152,1.99999999,141.2,141.18,6.7221637]
[1763196346327,1.99999999,141.2,141.19,6.7221637]
[1763196346531,1.99999999,141.22,141.19,6.7221637]
[1763196346726,1.99999999,141.22,141.21,6.7221637]
[1763196346958,1.99999999,141.23,141.21,6.7221637]
[1763196347144,0.83216157,141.24,141.22,6.7221637]
[1763196347145,1.99999999,141.24,141.22,6.7221637]
[1763196347348,1.99999999,141.24,141.23,6.7221637]
[1763196347665,1.99999999,141.25,141.23,6.7221637]
[1763196347963,0.69,141.26,141.24,6.7221637]
[1763196347964,1.99999999,141.26,141.24,6.7221637]
[1763196348144,1.99999999,141.27,141.25,6.7221637]
[1763196348327,1.99999999,141.26,141.25,6.7221637]
[1763196349055,1.99999999,141.28,141.25,6.7221637]
[1763196349256,2.68999999,141.28,141.26,6.7221637]
[1763196349457,1.99999999,141.27,141.26,6.7221637]
[1763196350352,1.99999999,141.28,141.26,13.80119323]
[1763196350650,1.99999999,141.27,141.26,13.80119323]
[1763196350851,1.99999999,141.24,141.22,9.78882769]
[1763196351050,1.99999999,141.24,141.23,6.7221637]
[1763196351958,1.99999999,141.25,141.23,6.7221637]
[1763196352130,1.99999999,141.24,141.23,6.7221637]
[1763196352331,1.99999999,141.24,141.23,13.80281228]
[1763196352550,1.99999999,141.25,141.23,13.80281228]
[1763196352751,1.99999999,141.25,141.24,6.7221637]
[1763196352936,1.99999999,141.25,141.24,16.51099139]
[1763196353349,1.99999999,141.26,141.24,16.51099139]
[1763196353546,1.99999999,141.26,141.25,6.7221637]
[1763196353742,1.99999999,141.25,141.24,9.78882769]
[1763196353952,1.99999999,141.25,141.24,16.51099139]
[1763196354148,1.99999999,141.25,141.24,23.59113865]
[1763196354738,1.99999999,141.26,141.24,23.59113865]
[1763196354959,1.99999999,141.25,141.23,6.7221637]
[1763196355258,1.99999999,141.24,141.23,6.7221637]
[1763196355461,1.99999999,141.25,141.23,6.7221637]
[1763196355647,1.99999999,141.24,141.23,6.7221637]
[1763196355851,1.99999999,141.24,141.21,16.87037732]
[1763196356048,1.99999999,141.24,141.22,6.7221637]
[1763196357563,1.99999999,141.24,141.23,6.7221637]
[1763196357782,0.14216157,141.28,141.23,16.51099139]
[1763196357783,1.99999999,141.27,141.23,16.51099139]
[1763196358059,1.99999999,141.26,141.25,6.7221637]
[1763196358259,2.68999999,141.27,141.25,6.7221637]
[1763196358561,1.99999999,141.26,141.25,6.7221637]
[1763196358758,0.69,141.27,141.23,9.78882769]
[1763196358759,2.68999999,141.27,141.24,6.7221637]
[1763196358939,1.99999999,141.25,141.24,6.7221637]
[1763196359268,1.99999999,141.26,141.24,6.7221637]
[1763196359439,1.99999999,141.24,141.21,7.08154963]
[1763196359641,1.99999999,141.22,141.21,6.7221637]
[1763196359944,1.99999999,141.22,141.2,6.7221637]
[1763196360259,1.99999999,141.22,141.21,6.7221637]
[1763196360466,1.99999999,141.24,141.21,6.7221637]
[1763196360646,1.99999999,141.24,141.2,9.78882769]
[1763196360961,1.99999999,141.25,141.23,6.7221637]
[1763196361176,1.99999999,141.25,141.24,6.7221637]
[1763196361961,2.68999999,141.25,141.23,6.7221637]
[1763196362165,1.99999999,141.24,141.23,6.7221637]
[1763196362349,1.99999999,141.24,141.23,13.80281228]
[1763196362938,1.99999999,141.24,141.23,6.7221637]
[1763196363133,1.99999999,141.24,141.22,16.86977585]
[1763196363134,2.68999999,141.24,141.17,18.1885264]
[1763196363359,2.68999999,141.23,141.19,9.78882769]
[1763196363570,1.99999999,141.2,141.19,6.7221637]
[1763196364168,1.99999999,141.2,141.19,13.80481827]
[1763196364466,1.99999999,141.21,141.19,13.80469067]
[1763196364680,1.99999999,141.21,141.2,6.7221637]
[1763196364880,1.99999999,141.23,141.2,7.2021637]
[1763196365056,1.99999999,141.23,141.22,6.7221637]
[1763196365247,1.99999999,141.23,141.2,10.26882769]
[1763196365447,1.99999999,141.26,141.22,6.7221637]
[1763196365646,1.99999999,141.26,141.24,6.7221637]
[1763196365860,2.68999999,141.25,141.24,6.7221637]
[1763196366064,1.99999999,141.26,141.24,6.7221637]
[1763196366278,2.68999999,141.26,141.24,6.7221637]
[1763196367560,2.68999999,141.26,141.24,13.80224473]
[1763196367872,106.29999999,141.28,141.25,6.7221637]
[1763196368062,104.3,141.28,141.27,6.7221637]
[1763196368261,104.3,141.28,141.25,0.48]
[1763196368262,104.3,141.28,141.25,10.26882769]
[1763196368489,106.29999999,141.28,141.27,6.7221637]
[1763196368658,104.3,141.28,141.27,6.7221637]
[1763196368860,2.19999999,141.31,141.27,7.2021637]
[1763196369050,2.19999999,141.31,141.3,6.7221637]
[1763196369655,0.2,141.31,141.3,6.7221637]
[1763196369879,2.88999999,141.31,141.3,6.7221637]
[1763196370875,2.19999999,141.31,141.3,6.7221637]
[1763196373269,0.2,141.31,141.3,13.79930453]
[1763196373466,0.2,141.31,141.3,6.7221637]
[1763196373673,2.19999999,141.31,141.3,6.7221637]
[1763196374085,1.99999999,141.3,141.21,29.73274199]
[1763196374291,1.99999999,141.27,141.26,6.7221637]
[1763196376460,1.99999999,141.28,141.26,13.80130853]
[1763196376699,1.99999999,141.27,141.26,7.07914483]
[1763196376870,1.99999999,141.28,141.26,7.07914483]
[1763196377065,106.99999999,141.29,141.26,7.07914483]
[1763196377275,1.99999999,141.29,141.27,9.78882769]
[1763196377671,1.99999999,141.28,141.27,9.78882769]
[1763196377873,1.99999999,141.28,141.27,6.7221637]
[1763196378170,1.99999999,141.29,141.27,6.7221637]
[1763196378385,2.69999999,141.29,141.28,6.7221637]
[1763196379507,1.99999999,141.29,141.28,6.7221637]
[1763196379905,2.69999999,141.29,141.28,6.7221637]
[1763196381388,1.99999999,141.28,141.27,6.7221637]
[1763196381709,2.69999999,141.28,141.27,6.7221637]
[1763196382806,1.99999999,141.28,141.27,6.7221637]
[1763196383303,1.99999999,141.26,141.25,6.7221637]
[1763196383604,1.99999999,141.26,141.24,6.7221637]
[1763196384109,2.69999999,141.26,141.24,6.7221637]
[1763196384307,1.99999999,141.26,141.24,6.7221637]
[1763196384524,1.99999999,141.26,141.18,0.48]
[1763196384525,106.99999999,141.25,141.18,0.48]
[1763196384700,1.99999999,141.22,141.2,6.7221637]
[1763196385029,1.99999999,141.21,141.19,6.7221637]
[1763196385183,1.99999999,141.2,141.19,6.7221637]
[1763196385382,1.99999999,141.2,141.14,17.71229266]
[1763196385583,1.99999999,141.23,141.19,6.7221637]
[1763196385881,1.99999999,141.21,141.15,0.48]
[1763196386095,0.7,141.22,141.15,0.48]
[1763196386096,1.99999999,141.19,141.18,6.7221637]
[1763196386318,2.69999999,141.19,141.18,6.7221637]
[1763196386531,2.69999999,141.19,141.17,6.7221637]
[1763196386813,1.99999999,141.17,141.16,6.7221637]
[1763196387223,1.99999999,141.17,141.14,7.08503711]
[1763196387224,1.99999999,141.16,141.14,6.7221637]
[1763196387399,2.69999999,141.16,141.15,6.7221637]
[1763196388617,1.99999999,141.18,141.15,7.2021637]
[1763196388805,1.99999999,141.19,141.17,6.7221637]
[1763196389018,1.99999999,141.21,141.18,6.7221637]
[1763196389333,1.99999999,141.23,141.2,6.7221637]
[1763196389624,1.99999999,141.23,141.22,6.7221637]
[1763196389802,1.99999999,141.26,141.22,6.7221637]
[1763196389997,1.99999999,141.26,141.2,7.2021637]
[1763196389998,1.99999999,141.26,141.24,6.7221637]
[1763196390228,2.69999999,141.26,141.22,9.78882769]
[1763196390430,1.99999999,141.25,141.24,6.7221637]
[1763196390638,1.99999999,141.25,141.24,13.80231096]
[1763196390808,1.99999999,141.25,141.24,6.7221637]
[1763196391607,1.99999999,141.24,141.23,6.7221637]
[1763196392325,6.86432527,141.28,141.23,6.7221637]
[1763196392326,1.99999999,141.26,141.23,6.7221637]
[1763196392524,0.7,141.27,141.25,6.7221637]
[1763196392525,2.69999999,141.27,141.25,6.7221637]
[1763196392830,1.99999999,141.26,141.25,13.80175567]
[1763196393137,1.99999999,141.28,141.25,41.7696984]
[1763196393338,2.89999999,141.31,141.27,6.7221637]
[1763196393542,1.99999999,141.28,141.27,6.7221637]
[1763196393746,0.7,141.3,141.25,6.7221637]
[1763196393747,1.99999999,141.27,141.25,6.7221637]
[1763196393947,1.99999999,141.26,141.25,6.7221637]
[1763196394151,1.99999999,141.24,141.23,16.51099139]
[1763196394814,1.99999999,141.24,141.23,6.7221637]
[1763196395513,1.99999999,141.24,141.23,13.80281228]
[1763196395911,1.99999999,141.24,141.23,6.7221637]
[1763196396324,1.99999999,141.25,141.23,13.80281228]
[1763196396528,1.99999999,141.26,141.24,6.7221637]
[1763196396723,1.99999999,141.26,141.25,13.80180971]
[1763196398142,1.99999999,141.26,141.25,6.7221637]
[1763196398718,1.99999999,141.22,141.17,7.083658]
[1763196398926,1.99999999,141.22,141.18,9.78882769]
[1763196399127,2.69999999,141.22,141.2,6.7221637]
[1763196399443,2.69999999,141.21,141.2,6.7221637]
[1763196399617,2.69999999,141.21,141.19,6.7221637]
[1763196400027,1.99999999,141.2,141.19,16.51099139]
[1763196400235,1.99999999,141.18,141.15,7.08430258]
[1763196400560,1.99999999,141.18,141.17,6.7221637]
[1763196401328,1.99999999,141.18,141.17,16.51099139]
[1763196401645,1.99999999,141.19,141.18,9.78882769]
[1763196401950,1.99999999,141.19,141.18,16.51099139]
[1763196402940,1.99999999,141.19,141.18,6.7221637]
[1763196403838,1.99999999,141.19,141.18,13.80531995]
[1763196404238,1.99999999,141.19,141.18,6.7221637]
[1763196404532,1.99999999,141.18,141.16,16.8729017]
[1763196404925,1.99999999,141.18,141.17,0.48]
[1763196405130,1.99999999,141.18,141.16,34.58330124]
[1763196405550,1.99999999,141.2,141.17,0.48]
[1763196405734,1.99999999,141.2,141.19,6.7221637]
[1763196406844,1.99999999,141.2,141.19,4.22160604]
[1763196408335,2.71999999,141.2,141.18,4.22160604]
[1763196408533,1.99999999,141.19,141.18,4.22160604]
[1763196408860,1.99999999,141.2,141.18,4.22160604]
[1763196409056,1.99999999,141.2,141.19,4.22160604]
[1763196410539,1.99999999,141.21,141.19,21.0930883]
[1763196410743,1.99999999,141.21,141.2,4.22160604]
[1763196411753,1.99999999,141.21,141.2,14.01043373]
[1763196412658,1.99999999,141.21,141.2,21.0925867]
[1763196413037,1.99999999,141.21,141.16,17.70932287]
[1763196413231,1.99999999,141.21,141.2,4.22160604]
[1763196414355,1.99999999,141.24,141.2,4.70160604]
[1763196414539,1.99999999,141.24,141.23,14.01043373]
[1763196416156,1.99999999,141.26,141.24,9.78882769]
[1763196416365,1.99999999,141.25,141.24,9.78882769]
[1763196416557,1.99999999,141.25,141.24,21.09058099]
[1763196417160,1.99999999,141.25,141.24,11.3017533]
[1763196417465,1.99999999,141.25,141.24,4.22160604]
[1763196417962,2.71999999,141.25,141.23,9.78882769]
[1763196418267,1.99999999,141.24,141.23,9.78882769]
[1763196418646,1.99999999,141.22,141.19,4.22160604]
[1763196418969,1.99999999,141.21,141.18,16.87198394]
[1763196419343,2.71999999,141.21,141.2,4.22160604]
[1763196420660,1.99999999,141.21,141.2,11.30375901]
[1763196421035,1.99999999,141.21,141.2,4.22160604]
[1763196421238,1.99999999,141.21,141.2,11.30375901]
[1763196421463,1.99999999,141.22,141.2,21.0925867]
[1763196421638,1.99999999,141.23,141.21,14.01043373]
[1763196421963,1.99999999,141.24,141.22,4.22160604]
[1763196422165,1.99999999,141.24,141.23,4.22160604]
[1763196422540,1.99999999,141.24,141.22,4.22160604]
[1763196422843,1.99999999,141.21,141.2,4.22160604]
[1763196423249,1.99999999,141.2,141.17,9.78882769]
[1763196423454,1.99999999,141.2,141.17,10.26882769]
[1763196423658,0.14216157,141.26,141.17,9.78882769]
[1763196423659,1.99999999,141.19,141.17,9.78882769]
[1763196424653,1.99999999,141.19,141.18,14.01043373]
[1763196424947,4.22160604,141.23,141.17,4.22160604]
[1763196424948,1.99999999,141.18,141.17,4.22160604]
[1763196425548,2.71999999,141.18,141.17,4.22160604]
[1763196426567,1.99999999,141.18,141.17,4.22160604]
[1763196426767,1.99999999,141.18,141.17,11.30526404]
[1763196427292,1.99999999,141.18,141.17,4.22160604]
[1763196427776,1.99999999,141.17,141.15,4.22160604]
[1763196427983,1.99999999,141.16,141.15,4.22160604]
[1763196428458,1.99999999,141.16,141.15,14.49043373]
[1763196428663,1.99999999,141.16,141.15,14.01043373]
[1763196429064,1.99999999,141.16,141.15,21.09509543]
[1763196429586,1.99999999,141.16,141.13,16.87449338]
[1763196429587,2.71999999,141.16,141.13,16.87449338]
[1763196429756,2.71999999,141.16,141.15,4.22160604]
[1763196430374,1.99999999,141.12,141.11,16.87531061]
[1763196430561,1.99999999,141.14,141.11,16.87531061]
[1763196430881,1.99999999,141.14,141.13,9.78882769]
[1763196431182,1.99999999,141.14,141.13,16.87449338]
[1763196431491,1.99999999,141.14,141.13,21.09609942]
[1763196431659,1.99999999,141.13,141.12,7.08584399]
[1763196431859,1.99999999,141.13,141.12,9.78882769]
[1763196432081,2.65999999,141.13,141.12,4.22160604]
[1763196432801,1.99999999,141.11,141.1,1425.40953832]
[1763196432972,1.99999999,141.11,141.1,1429.63114436]
[1763196433170,2.71999999,141.11,141.1,1425.40953832]
[1763196434204,7.0837676,141.11,141.1,1423.62953832]
[1763196434684,7.0837676,141.11,141.1,1413.62953832]
[1763196435072,2.86216156,141.11,141.1,1413.62953832]
[1763196435304,1.99999999,141.11,141.1,1413.62953832]
[1763196435471,1.99999999,141.11,141.1,1425.62831657]
[1763196435669,1.99999999,141.12,141.11,9.78882769]
[1763196435892,1.99999999,141.13,141.12,10.47882769]